bitfinex/quotes_SOLUSD_20260213
["timestamp","ask_amount","ask_price","bid_price","bid_amount"]
[1771009227006,3.5862446,85.439,85.411,3.54689888]
[1771009227589,11.70439382,85.438,85.411,3.54689888]
[1771009227790,3.5862446,85.437,85.411,3.54689888]
[1771009228899,10.1676168,85.45,85.394,91.17594321]
[1771009228900,3.5862446,85.451,85.421,3.54689888]
[1771009229102,3.5862446,85.45,85.421,3.54689888]
[1771009229813,11.70165461,85.458,85.431,3.54689888]
[1771009229997,11.70080781,85.465,85.441,3.54689888]
[1771009231221,11.70080781,85.465,85.425,45.58]
[1771009231222,3.14495508,85.464,85.434,3.26266828]
[1771009231511,3.14495508,85.464,85.44,10.1676168]
[1771009231819,11.70097001,85.463,85.44,10.1676168]
[1771009232608,11.70097001,85.463,85.44,13.43028508]
[1771009232803,11.70097001,85.463,85.44,3.26266828]
[1771009233016,3.79283264,85.46,85.431,3.26266828]
[1771009233520,40.95339503,85.463,85.431,3.26266828]
[1771009233822,11.70124384,85.461,85.431,3.26266828]
[1771009233999,3.14495508,85.46,85.431,3.26266828]
[1771009236117,11.70151768,85.459,85.431,3.26266828]
[1771009236518,3.14495508,85.458,85.431,3.26266828]
[1771009237726,40.95531189,85.459,85.431,3.26266828]
[1771009238221,3.13199681,85.458,85.431,3.26266828]
[1771009238428,3.13199681,85.458,85.43,10.15932334]
[1771009238647,3.13199681,85.458,85.424,3.2047793]
[1771009238648,0.89185243,85.439,85.408,3.2047793]
[1771009238940,0.89185243,85.439,85.4,10.15932334]
[1771009238941,10.15932334,85.43,85.401,3.2047793]
[1771009239236,0.89185243,85.432,85.401,3.2047793]
[1771009239820,51.52,85.436,85.411,3.2047793]
[1771009240317,40.96681687,85.435,85.411,3.2047793]
[1771009241826,3.13199681,85.434,85.384,11.71176641]
[1771009242127,3.13199681,85.434,85.41,10.15932334]
[1771009242325,11.70480482,85.435,85.41,10.15932334]
[1771009243504,11.70480482,85.435,85.42,10.15932334]
[1771009243722,11.70480482,85.435,85.41,10.15932334]
[1771009243932,11.70480482,85.435,85.411,3.2047793]
[1771009245436,29.25550769,85.454,85.42,10.15932334]
[1771009245612,14.83406222,85.455,85.431,3.2047793]
[1771009245613,11.70206541,85.455,85.431,3.2047793]
[1771009247511,3.13199681,85.459,85.431,3.2047793]
[1771009248713,3.13199681,85.457,85.431,3.2047793]
[1771009249132,51.66,85.47,85.441,3.2047793]
[1771009249432,46.76897656,85.527,85.44,10.15932334]
[1771009249433,11.69564226,85.502,85.461,3.2047793]
[1771009249735,11.69564226,85.502,85.44,10.15932334]
[1771009249736,11.69564226,85.502,85.49,10.15932334]
[1771009250435,3.13199681,85.501,85.463,3.2047793]
[1771009250623,11.69590643,85.5,85.47,13.36410264]
[1771009250824,14.82790324,85.5,85.471,3.2047793]
[1771009251139,3.13199681,85.499,85.471,3.2047793]
[1771009251444,11.69590643,85.5,85.48,10.15932334]
[1771009252518,11.69590643,85.5,85.481,3.2047793]
[1771009253725,29.23675863,85.509,85.481,3.2047793]
[1771009255031,29.23675863,85.509,85.462,45.64]
[1771009255032,3.13199681,85.529,85.5,10.15932334]
[1771009255241,3.13199681,85.538,85.51,10.15932334]
[1771009255447,3.13199681,85.538,85.501,3.2047793]
[1771009255645,3.13199681,85.538,85.5,10.15932334]
[1771009255851,40.91729189,85.539,85.489,3.2047793]
[1771009255852,3.13199681,85.529,85.49,10.15932334]
[1771009256251,3.13199681,85.519,85.49,10.15932334]
[1771009256456,3.13199681,85.519,85.481,3.2047793]
[1771009256634,3.13199681,85.518,85.481,3.2047793]
[1771009257156,3.13199681,85.516,85.481,3.2047793]
[1771009257446,51.7,85.52,85.491,3.2047793]
[1771009257832,3.13199681,85.524,85.5,10.15932334]
[1771009258355,3.13199681,85.524,85.497,3.2047793]
[1771009258555,3.13199681,85.522,85.497,3.2047793]
[1771009259053,11.69226522,85.527,85.501,3.2047793]
[1771009259253,11.69226522,85.527,85.483,29.24556518]
[1771009259254,11.69226522,85.527,85.511,3.2047793]
[1771009259459,11.69226522,85.527,85.501,3.2047793]
[1771009260660,29.22985186,85.529,85.501,3.2047793]
[1771009262057,3.21362539,85.528,85.501,3.2047793]
[1771009262560,11.69221415,85.527,85.501,3.2047793]
[1771009262856,3.21362539,85.526,85.501,3.2047793]
[1771009263042,3.21362539,85.526,85.5,10.15932334]
[1771009263238,3.21362539,85.526,85.49,11.69726897]
[1771009263239,3.21362539,85.526,85.49,10.15932334]
[1771009263442,4.61729252,85.517,85.48,10.15932334]
[1771009263645,3.21362539,85.509,85.471,3.18725199]
[1771009263945,4.61729252,85.517,85.491,3.18725199]
[1771009264155,51.82,85.516,85.491,3.18725199]
[1771009264341,40.92274953,85.527,85.491,3.18725199]
[1771009264549,51.82,85.525,85.501,3.18725199]
[1771009264747,11.69262429,85.524,85.501,3.18725199]
[1771009265070,40.92418502,85.524,85.501,3.18725199]
[1771009265447,8.83401738,85.524,85.511,3.18725199]
[1771009265648,11.69139396,85.533,85.511,3.18725199]
[1771009265862,11.69139396,85.533,85.503,3.18725199]
[1771009265863,3.21362539,85.532,85.503,3.18725199]
[1771009266258,3.21362539,85.529,85.503,3.18725199]
[1771009266583,3.21362539,85.529,85.479,29.2468076]
[1771009266584,3.21362539,85.529,85.5,10.15932334]
[1771009266869,3.21362539,85.527,85.5,10.15932334]
[1771009267069,3.21362539,85.527,85.5,13.34657533]
[1771009267566,3.21362539,85.527,85.501,3.18725199]
[1771009268567,40.92227106,85.528,85.501,3.18725199]
[1771009268766,29.23019362,85.528,85.501,3.18725199]
[1771009269073,3.21362539,85.527,85.501,3.18725199]
[1771009270675,11.69235086,85.526,85.501,3.18725199]
[1771009271578,3.21362539,85.525,85.49,3.78655317]
[1771009272369,3.21362539,85.525,85.491,3.18725199]
[1771009273876,3.21362539,85.519,85.484,3.18725199]
[1771009274066,3.78655317,85.52,85.484,3.18725199]
[1771009274067,3.21362539,85.509,85.484,3.18725199]
[1771009274377,51.98,85.518,85.5,3.78655317]
[1771009274567,3.21362539,85.517,85.491,3.18725199]
[1771009274876,3.21362539,85.516,85.48,3.78655317]
[1771009275074,3.21362539,85.509,85.47,3.78655317]
[1771009275579,99.38730648,85.524,85.453,45.52]
[1771009275580,3.21362539,85.499,85.453,45.52]
[1771009275771,3.78655317,85.52,85.44,3.78655317]
[1771009275772,3.21362539,85.479,85.44,3.78655317]
[1771009276075,3.78655317,85.48,85.44,3.78655317]
[1771009276076,3.21362539,85.477,85.44,3.78655317]
[1771009276273,52.02,85.502,85.471,3.18725199]
[1771009276574,11.69467541,85.509,85.481,3.18725199]
[1771009276877,11.69467541,85.509,85.491,3.18725199]
[1771009277575,11.69330791,85.519,85.491,3.18725199]
[1771009279561,3.21362539,85.522,85.491,3.18725199]
[1771009280275,3.21362539,85.519,85.484,3.18725199]
[1771009280471,3.21362539,85.509,85.481,3.18725199]
[1771009281773,11.69481218,85.508,85.49,10.14503977]
[1771009282161,11.69481218,85.508,85.49,13.33229176]
[1771009282374,11.69481218,85.508,85.491,3.18725199]
[1771009282668,11.69412993,85.513,85.491,3.18725199]
[1771009283183,14.90775532,85.513,85.491,3.18725199]
[1771009283778,3.21362539,85.52,85.491,3.18725199]
[1771009286271,3.21362539,85.518,85.491,3.18725199]
[1771009288967,3.21362539,85.516,85.491,3.18725199]
[1771009291185,11.69385487,85.515,85.491,3.18725199]
[1771009291389,3.06011091,85.514,85.491,3.18725199]
[1771009292688,11.69385487,85.515,85.49,10.14503977]
[1771009292689,11.69385487,85.515,85.498,3.18887428]
[1771009293065,14.75396578,85.515,85.491,3.18887428]
[1771009293489,3.06011091,85.514,85.491,3.18887428]
[1771009295386,10.14503977,85.53,85.474,61.9]
[1771009295387,29.23224433,85.522,85.501,3.18887428]
[1771009296267,32.29235524,85.522,85.501,3.18887428]
[1771009296492,43.98525297,85.522,85.501,3.18887428]
[1771009296671,3.06011091,85.521,85.491,3.18887428]
[1771009299086,2.95052457,85.519,85.501,2.94429169]
[1771009300671,11.69207744,85.528,85.501,2.94429169]
[1771009301285,2.95052457,85.53,85.501,2.94429169]
[1771009301683,11.69112059,85.535,85.298,64.62457274]
[1771009301684,14.64164516,85.535,85.511,2.94429169]
[1771009301878,43.86944664,85.535,85.511,2.94429169]
[1771009302299,2.95052457,85.534,85.504,2.94429169]
[1771009302601,2.95052457,85.509,85.47,3.78633095]
[1771009302897,2.95052457,85.507,85.471,2.94429169]
[1771009303488,11.69508572,85.506,85.472,11.69973792]
[1771009303676,2.95052457,85.505,85.473,2.94429169]
[1771009303873,11.69449471,85.511,85.481,2.94429169]
[1771009304105,2.95052457,85.524,85.491,2.94429169]
[1771009304596,2.95052457,85.531,85.491,2.94429169]
[1771009304977,2.95052457,85.538,85.501,2.94429169]
[1771009305679,11.69084723,85.537,85.503,2.94429169]
[1771009305883,14.6413718,85.537,85.503,2.94429169]
[1771009306083,2.95052457,85.536,85.503,2.94429169]
[1771009307101,2.95052457,85.536,85.5,3.78633095]
[1771009307285,4.61729252,85.527,85.44,3.78633095]
[1771009307486,4.61729252,85.527,85.407,99.53442976]
[1771009307487,2.95052457,85.469,85.43,3.78633095]
[1771009307792,2.95052457,85.469,85.4,50.62429174]
[1771009307793,2.95052457,85.498,85.441,40.96394002]
[1771009307996,2.95052457,85.498,85.46,3.78633095]
[1771009308206,2.95052457,85.498,85.45,3.78633095]
[1771009308390,57.29615129,85.499,85.45,3.78633095]
[1771009308391,3.78633095,85.49,85.45,3.78633095]
[1771009308699,11.6955201,85.503,85.47,3.78633095]
[1771009309004,2.95052457,85.538,85.49,10.14504703]
[1771009309212,2.95052457,85.538,85.5,10.14504703]
[1771009309501,2.95052457,85.538,85.501,2.94429169]
[1771009309883,2.95052457,85.536,85.501,2.94429169]
[1771009310505,2.95052457,85.536,85.503,2.94429169]
[1771009310802,11.69084723,85.537,85.511,2.94429169]
[1771009311015,11.69084723,85.537,85.52,10.14504703]
[1771009311205,11.69084723,85.537,85.511,2.94429169]
[1771009311393,2.95052457,85.536,85.511,2.94429169]
[1771009312108,2.95052457,85.529,85.491,2.94429169]
[1771009312304,40.91892207,85.535,85.481,45.88]
[1771009312305,2.95052457,85.519,85.481,45.88]
[1771009312884,2.95052457,85.499,85.462,2.94429169]
[1771009313400,2.95052457,85.497,85.47,10.14504703]
[1771009313905,2.95052457,85.497,85.462,2.94429169]
[1771009314300,2.95052457,85.495,85.462,2.94429169]
[1771009316382,52.54,85.498,85.46,10.14504703]
[1771009316383,2.95052457,85.493,85.46,10.14504703]
[1771009316589,2.95052457,85.489,85.45,10.14504703]
[1771009316797,2.95052457,85.489,85.446,11.70329798]
[1771009316798,2.95052457,85.489,85.451,2.94429169]
[1771009317000,2.95052457,85.489,85.46,10.14504703]
[1771009317906,11.69481218,85.508,85.48,13.08933872]
[1771009318089,11.69481218,85.508,85.491,2.94429169]
[1771009318489,14.64301214,85.525,85.5,10.14504703]
[1771009318703,14.64301214,85.525,85.501,2.94429169]
[1771009318704,11.69248757,85.525,85.501,2.94429169]
[1771009318911,11.69248757,85.525,85.497,2.94429169]
[1771009319095,2.95052457,85.524,85.497,2.94429169]
[1771009319787,2.95052457,85.524,85.491,11.69708072]
[1771009319989,2.95052457,85.524,85.489,2.94429169]
[1771009320194,2.95052457,85.519,85.48,10.14504703]
[1771009320609,40.92370651,85.525,85.49,10.14504703]
[1771009320610,2.95052457,85.517,85.49,10.14504703]
[1771009320804,11.69297591,85.522,85.501,3.04842336]
[1771009321716,3.17967349,85.528,85.501,3.04842336]
[1771009321893,64.33161338,85.532,85.51,10.14504703]
[1771009322194,3.17967349,85.531,85.501,3.04842336]
[1771009322594,11.69180404,85.53,85.51,10.14504703]
[1771009322800,11.69180404,85.53,85.503,3.04842336]
[1771009322801,3.17967349,85.529,85.503,3.04842336]
[1771009323208,3.17967349,85.529,85.488,45.78]
[1771009323209,11.69057389,85.539,85.511,3.04842336]
[1771009323409,3.17967349,85.538,85.511,3.04842336]
[1771009325011,11.69084723,85.537,85.511,3.04842336]
[1771009325221,3.17967349,85.536,85.503,3.04842336]
[1771009325405,3.17967349,85.536,85.51,10.14504703]
[1771009325906,3.17967349,85.536,85.51,13.19347039]
[1771009326626,0.2,85.54,85.52,10.14504703]
[1771009326927,0.2,85.54,85.521,3.04842336]
[1771009327212,11.8904583,85.54,85.521,3.04842336]
[1771009328309,11.8904583,85.54,85.513,3.04842336]
[1771009328516,11.8904583,85.54,85.52,10.14504703]
[1771009329623,11.68920735,85.549,85.53,10.14504703]
[1771009329823,3.17967349,85.548,85.52,10.14504703]
[1771009329994,3.17967349,85.548,85.51,10.14504703]
[1771009330201,3.17967349,85.548,85.511,3.04842336]
[1771009330522,11.68920735,85.549,85.521,3.04842336]
[1771009331021,3.17967349,85.548,85.521,3.04842336]
[1771009331325,11.68948063,85.547,85.521,3.04842336]
[1771009332614,3.17967349,85.546,85.521,3.04842336]
[1771009333626,11.68975393,85.545,85.521,3.04842336]
[1771009334620,129.42272095,85.55,85.521,3.04842336]
[1771009334621,11.68958686,85.547,85.531,3.04842336]
[1771009335000,100.2,85.55,85.54,10.14504703]
[1771009335213,100.2,85.55,85.531,3.04842336]
[1771009335410,100.2,85.55,85.54,10.14504703]
[1771009335614,100.2,85.55,85.531,3.04842336]
[1771009336424,3.17967349,85.548,85.52,10.14504703]
[1771009336933,3.17967349,85.548,85.521,3.04842336]
[1771009337419,11.68920735,85.549,85.53,10.14504703]
[1771009337716,96.86538151,85.55,85.542,3.04842336]
[1771009338131,3.25146914,85.573,85.542,3.04842336]
[1771009338302,3.25146914,85.588,85.56,10.14504703]
[1771009338635,10.34504703,85.6,85.58,10.14504703]
[1771009338636,0.2,85.6,85.58,10.14504703]
[1771009338929,3.25146914,85.589,85.53,40.92122575]
[1771009339111,3.25146914,85.579,85.54,10.14504703]
[1771009340123,3.25146914,85.577,85.54,10.14504703]
[1771009340323,10.14504703,85.57,85.533,11.69131482]
[1771009340510,3.25146914,85.549,85.51,10.14504703]
[1771009340714,3.25146914,85.549,85.511,45.9]
[1771009341530,3.25146914,85.549,85.52,10.14504703]
[1771009341832,3.25146914,85.555,85.52,10.14504703]
[1771009342024,3.25146914,85.555,85.482,5.36086188]
[1771009342025,3.25146914,85.567,85.54,10.14504703]
[1771009342523,3.25146914,85.559,85.521,45.88]
[1771009343631,3.25146914,85.559,85.522,11.69289773]
[1771009344012,3.25146914,85.559,85.53,10.14504703]
[1771009344229,3.25146914,85.557,85.53,10.14504703]
[1771009344618,3.25146914,85.557,85.523,0.02550946]
[1771009345427,3.25146914,85.557,85.521,45.88]
[1771009346305,3.25146914,85.549,85.521,45.88]
[1771009347135,3.25146914,85.549,85.504,29.23833881]
[1771009347136,3.25146914,85.539,85.5,10.14504703]
[1771009347339,3.25146914,85.519,85.489,11.69741136]
[1771009347543,0.4972711,85.519,85.49,2.78093572]
[1771009347731,10.14504703,85.53,85.491,2.78093572]
[1771009348041,53.26,85.533,85.491,2.78093572]
[1771009348042,10.14504703,85.52,85.491,2.78093572]
[1771009348611,11.69330791,85.519,85.492,14.47833663]
[1771009348829,11.69330791,85.519,85.492,11.69700088]
[1771009349017,10.14504703,85.52,85.493,2.78133575]
[1771009349222,11.69217549,85.528,85.493,2.78133575]
[1771009349430,3.17967349,85.528,85.493,2.78133575]
[1771009349626,10.14504703,85.53,85.493,2.78133575]
[1771009349833,3.17967349,85.529,85.493,2.78133575]
[1771009350131,3.17967349,85.528,85.493,2.78133575]
[1771009350321,3.17967349,85.519,85.487,11.69755116]
[1771009350716,53.26,85.533,85.477,45.9]
[1771009350717,3.17967349,85.509,85.477,45.9]
[1771009351014,3.17967349,85.509,85.475,14.48221775]
[1771009351214,3.17967349,85.509,85.476,2.78289047]
[1771009352635,3.18932646,85.497,85.472,45.94]
[1771009352844,10.14504703,85.49,85.472,45.94]
[1771009353038,3.18932646,85.479,85.44,10.14504703]
[1771009353224,3.18932646,85.469,85.439,2.78851685]
[1771009353423,3.18932646,85.469,85.441,2.78851685]
[1771009353723,3.18932646,85.479,85.441,2.78851685]
[1771009354638,10.14504703,85.47,85.443,2.79370536]
[1771009355140,10.14504703,85.47,85.437,11.70450817]
[1771009355141,3.18932646,85.469,85.437,14.50336509]
[1771009355327,3.18932646,85.469,85.438,2.79883427]
[1771009356420,3.18932646,85.469,85.437,11.70453082]
[1771009356421,3.18932646,85.469,85.436,45.96]
[1771009356639,3.18932646,85.459,85.436,45.96]
[1771009356840,11.70165461,85.458,85.436,45.96]
[1771009357352,3.18932646,85.459,85.436,45.96]
[1771009358545,14.8909755,85.459,85.436,45.96]
[1771009358741,14.8909755,85.459,85.404,61.9]
[1771009358742,3.26731103,85.449,85.415,2.81876755]
[1771009358942,3.26731103,85.449,85.419,2.81876755]
[1771009359442,3.26731103,85.449,85.413,46.04]
[1771009359647,10.16198416,85.44,85.413,46.04]
[1771009360246,13.42929519,85.45,85.42,12.9903782]
[1771009360548,11.70302406,85.448,85.421,2.82839404]
[1771009360744,11.70192847,85.456,85.423,2.82839404]
[1771009360949,3.26731103,85.455,85.423,2.82839404]
[1771009361350,29.25063662,85.469,85.422,11.70658612]
[1771009361351,3.26731103,85.507,85.441,2.83312452]
[1771009361533,3.26731103,85.519,85.49,10.16198416]
[1771009361734,11.6928614,85.523,85.5,10.16198416]
[1771009361949,3.26731103,85.528,85.5,10.16198416]
[1771009362154,11.69221415,85.527,85.5,10.16198416]
[1771009362447,3.26731103,85.519,85.49,10.16198416]
[1771009362644,3.26731103,85.499,85.46,10.16198416]
[1771009363042,3.26731103,85.499,85.454,46.08]
[1771009363252,3.26731103,85.489,85.454,46.08]
[1771009363432,3.26731103,85.479,85.431,2.8424231]
[1771009363632,10.16198416,85.46,85.432,46.08]
[1771009363952,10.16198416,85.47,85.433,2.84699244]
[1771009364342,3.26731103,85.488,85.45,10.16198416]
[1771009364536,11.69604322,85.499,85.47,10.16198416]
[1771009364737,3.26731103,85.498,85.461,14.54811836]
[1771009364947,10.16198416,85.49,85.461,2.84699244]
[1771009365237,3.26731103,85.489,85.457,11.70177949]
[1771009366141,14.96485922,85.488,85.452,11.70247624]
[1771009366449,3.26731103,85.479,85.44,56.26198416]
[1771009366656,40.94141867,85.488,85.431,2.85597428]
[1771009366657,3.26731103,85.469,85.431,2.85597428]
[1771009367044,3.26731103,85.469,85.43,11.70548987]
[1771009367247,40.94141867,85.488,85.43,11.70548987]
[1771009367248,3.26731103,85.459,85.43,11.70548987]
[1771009367557,3.26731103,85.449,85.416,46.1]
[1771009368336,3.26731103,85.447,85.416,46.1]
[1771009369058,3.26731103,85.447,85.417,11.70727138]
[1771009369434,11.70248495,85.452,85.42,13.03104801]
[1771009370042,10.16198416,85.45,85.42,2.86906385]
[1771009370238,3.26731103,85.427,85.396,11.71003759]
[1771009371156,3.26731103,85.419,85.39,0.1]
[1771009371663,3.26731103,85.419,85.39,10.26198416]
[1771009371967,3.26731103,85.409,85.39,0.1]
[1771009372161,3.26731103,85.399,85.37,0.1]
[1771009372342,3.26731103,85.397,85.37,0.1]
[1771009372667,11.7098761,85.398,85.344,11.71718009]
[1771009372668,3.26731103,85.379,85.344,11.71718009]
[1771009372965,10.16198416,85.37,85.344,11.71718009]
[1771009373150,3.26731103,85.369,85.332,11.7189331]
[1771009373342,3.26731103,85.369,85.332,14.70475877]
[1771009374248,3.26731103,85.369,85.34,10.16198416]
[1771009374442,10.16198416,85.36,85.327,11.71952185]
[1771009374670,10.16198416,85.35,85.32,0.1]
[1771009374842,3.26731103,85.359,85.32,0.1]
[1771009374843,3.26731103,85.339,85.32,0.1]
[1771009375043,10.16198416,85.35,85.32,0.1]
[1771009375243,3.26731103,85.351,85.32,10.26198416]
[1771009375542,13.42929519,85.37,85.33,13.15590471]
[1771009375740,13.42929519,85.37,85.331,2.99392055]
[1771009375967,14.98106348,85.37,85.34,10.16198416]
[1771009376348,11.71399119,85.368,85.332,11.7189331]
[1771009376853,3.26731103,85.359,85.332,11.7189331]
[1771009377241,3.26731103,85.359,85.322,11.7203066]
[1771009378162,3.26731103,85.379,85.34,10.16198416]
[1771009378659,10.16198416,85.38,85.32,0.1]
[1771009378660,53.18,85.381,85.35,10.16198416]
[1771009379055,3.26731103,85.385,85.35,10.16198416]
[1771009379563,3.26731103,85.385,85.341,44.01777781]
[1771009379564,3.26731103,85.379,85.341,14.72353472]
[1771009380147,10.16198416,85.37,85.34,10.16198416]
[1771009380352,3.26731103,85.379,85.32,29.40112363]
[1771009380353,13.42929519,85.35,85.324,11.71992864]
[1771009380564,10.16198416,85.38,85.32,10.26198416]
[1771009380565,3.26731103,85.361,85.33,10.16198416]
[1771009380763,46.8265417,85.422,85.351,3.01758427]
[1771009380764,53.2,85.382,85.351,3.01758427]
[1771009380967,53.2,85.382,85.321,41.02155389]
[1771009380968,11.71050737,85.394,85.36,13.18339442]
[1771009381147,3.26616077,85.399,85.37,10.16198416]
[1771009381548,11.70889551,85.406,85.38,10.16198416]
[1771009381749,3.26616077,85.409,85.38,10.16198416]
[1771009382172,3.26616077,85.399,85.36,10.16198416]
[1771009382562,3.26616077,85.399,85.354,36.34]
[1771009382563,3.26616077,85.389,85.356,11.71555353]
[1771009383068,10.16198416,85.39,85.337,75.41538165]
[1771009383069,3.26616077,85.379,85.341,11.71769723]
[1771009383265,3.26616077,85.369,85.338,11.71810916]
[1771009383445,3.26616077,85.369,85.337,46.12]
[1771009383649,3.26616077,85.369,85.334,11.7186473]
[1771009383853,11.7098761,85.398,85.361,3.02893091]
[1771009384359,14.97603687,85.398,85.361,3.02893091]
[1771009384565,3.26616077,85.398,85.37,10.16198416]
[1771009384863,10.16198416,85.43,85.39,10.16198416]
[1771009385054,3.26616077,85.432,85.4,10.16198416]
[1771009385254,3.26616077,85.429,85.391,3.03627979]
[1771009385451,3.26616077,85.409,85.376,46.12]
[1771009385974,3.26616077,85.409,85.37,10.16198416]
[1771009386391,13.42814493,85.42,85.38,13.20187521]
[1771009386592,3.26616077,85.418,85.381,11.71220763]
[1771009387490,11.70699727,85.419,85.357,46.12]
[1771009387491,3.26616077,85.409,85.37,10.16198416]
[1771009388981,3.26616077,85.407,85.371,11.71357955]
[1771009389578,3.26616077,85.407,85.37,10.16198416]
[1771009389774,11.70699727,85.419,85.39,10.16198416]
[1771009390198,3.26616077,85.418,85.38,13.20846535]
[1771009390803,3.26616077,85.418,85.39,10.16198416]
[1771009390975,11.70727138,85.417,85.385,11.71156583]
[1771009391368,14.97343215,85.417,85.385,11.71156583]
[1771009391885,14.97343215,85.417,85.39,10.16198416]
[1771009392487,3.26616077,85.416,85.383,11.71184872]
[1771009393273,3.26616077,85.416,85.371,75.42394888]
[1771009393274,3.26616077,85.409,85.373,11.71324411]
[1771009394284,10.16198416,85.41,85.373,11.71324411]
[1771009394285,3.26616077,85.407,85.373,11.71324411]
[1771009395398,3.26616077,85.407,85.371,3.04648119]
[1771009395597,11.70795672,85.412,85.381,3.04648119]
[1771009396098,11.70686347,85.42,85.391,3.04648119]
[1771009396299,11.70534225,85.432,85.401,3.04648119]
[1771009396497,3.26616077,85.429,85.393,11.71044504]
[1771009396801,3.26616077,85.409,85.38,56.34198416]
[1771009397180,3.26616077,85.409,85.363,29.28662055]
[1771009397181,3.26616077,85.409,85.371,11.71357955]
[1771009397504,10.16198416,85.4,85.363,3.04648119]
[1771009397710,3.26616077,85.389,85.354,11.71578035]
[1771009398206,3.26616077,85.389,85.338,46.2]
[1771009398207,3.26616077,85.379,85.34,10.16198416]
[1771009398379,3.26616077,85.377,85.34,10.16198416]
[1771009398580,3.26616077,85.377,85.332,46.2]
[1771009398581,3.26616077,85.369,85.333,11.71869835]
[1771009399491,10.16198416,85.35,85.32,10.26198416]
[1771009399689,13.42814493,85.35,85.32,10.26198416]
[1771009400601,11.7165989,85.349,85.321,11.72044397]
[1771009401003,13.42814493,85.34,85.32,0.1]
[1771009401317,3.26616077,85.339,85.32,0.1]
[1771009402608,11.71810916,85.338,85.32,0.1]
[1771009402807,3.26616077,85.339,85.32,0.1]
[1771009403196,11.71810916,85.338,85.32,0.1]
[1771009404284,14.98426993,85.338,85.32,0.1]
[1771009404496,11.71754484,85.343,85.32,0.1]
[1771009404709,53.18,85.363,85.32,0.1]
[1771009404710,10.16198416,85.36,85.321,3.04648119]
[1771009404886,11.71497856,85.361,85.331,3.04648119]
[1771009405088,10.16198416,85.35,85.32,10.26198416]
[1771009405398,11.71497856,85.361,85.32,0.1]
[1771009405399,10.16198416,85.34,85.32,0.1]
[1771009405609,3.26616077,85.339,85.32,0.1]
[1771009407686,3.26616077,85.337,85.32,0.1]
[1771009409097,3.26616077,85.329,85.31,0.1]
[1771009409685,3.26616077,85.319,85.3,0.1]
[1771009410507,11.71948246,85.328,85.3,0.1]
[1771009410690,3.07070036,85.319,85.3,0.1]
[1771009412108,3.07070036,85.317,85.3,0.1]
[1771009412492,3.07070036,85.329,85.3,0.1]
[1771009412691,14.79004548,85.329,85.3,10.26198416]
[1771009413098,14.79004548,85.329,85.3,0.1]
[1771009413907,3.07070036,85.319,85.3,0.1]
[1771009414108,3.07070036,85.319,85.28,10.36198416]
[1771009414303,3.07070036,85.309,85.28,0.2]
[1771009414894,3.07070036,85.309,85.28,10.36198416]
[1771009415690,3.07070036,85.309,85.28,0.2]
[1771009415890,3.07070036,85.307,85.28,0.2]
[1771009416615,53.28,85.313,85.281,11.72594129]
[1771009416808,3.07070036,85.309,85.28,0.2]
[1771009417519,3.36919295,85.289,85.27,0.1]
[1771009417722,3.36919295,85.279,85.25,10.16198416]
[1771009417897,11.7263538,85.278,85.25,10.16198416]
[1771009418906,11.7263538,85.278,85.25,10.20294963]
[1771009419215,3.36919295,85.269,85.24,10.20294963]
[1771009420398,3.36919295,85.279,85.24,13.49393394]
[1771009420602,58.61331068,85.305,85.231,30.78]
[1771009420603,3.36919295,85.297,85.261,3.29098431]
[1771009420807,10.20294963,85.29,85.261,3.29098431]
[1771009421215,41.02395798,85.316,85.27,10.20294963]
[1771009421216,10.20294963,85.31,85.27,10.20294963]
[1771009421524,10.20294963,85.29,85.261,3.29098431]
[1771009421710,3.36919295,85.299,85.261,3.29098431]
[1771009422116,10.20294963,85.3,85.261,3.29098431]
[1771009422117,3.36919295,85.297,85.261,3.29098431]
[1771009422332,3.36919295,85.297,85.27,10.20294963]
[1771009422518,3.36919295,85.297,85.262,3.29098431]
[1771009422727,3.36919295,85.297,85.27,10.20294963]
[1771009422924,3.36919295,85.297,85.261,11.72856046]
[1771009422925,3.36919295,85.351,85.281,3.29098431]
[1771009423228,3.36919295,85.339,85.301,3.29098431]
[1771009423418,25.98,85.35,85.282,35.0]
[1771009423419,3.36919295,85.349,85.31,10.20294963]
[1771009423609,11.71632435,85.351,85.321,3.29098431]
[1771009423925,11.71632435,85.351,85.322,19.70424375]
[1771009424118,11.71522627,85.359,85.33,10.20294963]
[1771009424320,10.20294963,85.37,85.34,10.20294963]
[1771009424321,11.7143529,85.366,85.34,10.20294963]
[1771009424630,11.7143529,85.366,85.33,10.20294963]
[1771009424810,3.36919295,85.365,85.33,10.20294963]
[1771009425323,3.36919295,85.365,85.34,10.20294963]
[1771009425498,3.36919295,85.365,85.33,13.49393394]
[1771009426105,11.71454008,85.364,85.33,13.49393394]
[1771009426404,11.71454008,85.364,85.34,10.20294963]
[1771009426607,3.36919295,85.365,85.34,10.20294963]
[1771009426826,11.71402671,85.368,85.34,10.20294963]
[1771009427352,4.61729252,85.399,85.331,41.01674654]